[Event "RUS-chT Women Rapid 2019"]
[Site "Sochi"]
[Date "2019.10.18"]
[Round "4.6"]
[White "Girya, Olga"]
[Black "Tomilova, Elena"]
[Result "1/2-1/2"]
[ECO "E15"]
[WhiteElo "2476"]
[BlackElo "2345"]
[Annotator "ChessBase"]
[PlyCount "111"]
[EventDate "2019.10.18"]
[EventType "swiss"]
[EventCountry "RUS"]
[SourceTitle "playchess.com"]
[Source "ChessBase"]
[SourceQuality "1"]
[TimeControl "900+10"]

1. d4 {[%emt 0:00:00]} Nf6 {[%emt 0:00:00]} 2. c4 {[%emt 0:00:00]} e6 {[%emt 0:00:00]} 3. Nf3 {[%emt 0:00:00]} b6 {[%emt 0:00:00]} 4. g3 {[%emt 0:00:00]} Bb4+ {[%emt 0:00:00]} 5. Bd2 {[%emt 0:00:00]} c5 {[%emt 0:00:00]} 6. Bxb4 {[%emt 0:00:06]} cxb4 {[%emt 0:00:00]} 7. Bg2 {[%emt 0:00:01]} Bb7 {[%emt 0:00:00]} 8. O-O {[%emt 0:00:02]} a5 {[%emt 0:00:02]} 9. Qd3 {[%emt 0:00:14]} O-O {[%emt 0:00:06]} 10. Rd1 {[%emt 0:00:11]} d6 {[%emt 0:00:09]} 11. Nbd2 {[%emt 0:00:23]} Qe7 {[%emt 0:01:26]} 12. e4 {[%emt 0:04:00]} e5 {[%emt 0:00:08]} 13. a3 {[%emt 0:00:46]} Na6 {[%emt 0:00:45]} 14. Nh4 {[%emt 0:00:40]} g6 {[%emt 0:00:05]} 15. Nf1 {[%emt 0:00:13]} bxa3 {[%emt 0:01:14]} 16. bxa3 {[%emt 0:00:06]} Rfd8 {[%emt 0:00:45]} 17. Ne3 {[%emt 0:02:42]} Rac8 {[%emt 0:01:14]} 18. Rab1 {[%emt 0:00:20]} Qc7 {[%emt 0:01:47]} 19. Nd5 {[%emt 0:00:56]} Bxd5 {[%emt 0:00:25]} 20. cxd5 {[%emt 0:00:06]} Nb8 {[%emt 0:00:22]} 21. dxe5 {[%emt 0:00:59]} dxe5 {[%emt 0:00:02]} 22. Bh3 {[%emt 0:00:56]} Nbd7 {[%emt 0:00:07]} 23. Bxd7 {[%emt 0:02:23]} Nxd7 {[%emt 0:00:23]} 24. Nf3 {[%emt 0:00:23]} Qc3 {[%emt 0:00:25]} 25. Kg2 {[%emt 0:00:30]} Qxd3 {[%emt 0:00:21]} 26. Rxd3 {[%emt 0:00:01]} Rc4 {[%emt 0:00:09]} 27. Nd2 {[%emt 0:00:41]} Rc2 {[%emt 0:00:02]} 28. Nf1 {[%emt 0:00:35]} Rdc8 {[%emt 0:00:14]} 29. Ne3 {[%emt 0:00:38]} R2c3 {[%emt 0:00:10]} 30. Rb3 {[%emt 0:01:06]} Rxd3 {[%emt 0:00:10]} 31. Rxd3 {[%emt 0:00:01]} a4 {[%emt 0:01:23]} 32. d6 {[%emt 0:00:35]} f6 {[%emt 0:00:36]} 33. Nd5 {[%emt 0:00:02]} Rc4 {[%emt 0:01:11]} 34. f3 {[%emt 0:00:35]} Kf7 {[%emt 0:00:05]} 35. Nxb6 {[%emt 0:00:06]} Rc2+ {[%emt 0:00:57]} 36. Kh3 {[%emt 0:00:00]} Nxb6 {[%emt 0:00:02]} 37. d7 {[%emt 0:00:01]} Nxd7 {[%emt 0:00:01]} 38. Rxd7+ {[%emt 0:00:00]} Ke6 {[%emt 0:00:01]} 39. Ra7 {[%emt 0:00:06]} Rc3 {[%emt 0:00:19]} 40. Ra6+ {[%emt 0:00:09]} Ke7 {[%emt 0:00:11]} 41. Rxa4 {[%emt 0:00:10]} Rxf3 {[%emt 0:00:01]} 42. Kg2 {[%emt 0:00:39]} Rb3 {[%emt 0:00:28]} 43. Ra7+ {[%emt 0:00:05]} Ke6 {[%emt 0:00:02]} 44. h4 {[%emt 0:00:26]} f5 {[%emt 0:00:51]} 45. exf5+ {[%emt 0:00:13]} gxf5 {[%emt 0:00:04]} 46. a4 {[%emt 0:00:17]} h5 {[%emt 0:00:31]} 47. a5 {[%emt 0:00:02]} Ra3 {[%emt 0:00:11]} 48. a6 {[%emt 0:00:04]} Kf6 {[%emt 0:01:53]} 49. Ra8 {[%emt 0:00:09]} Kg7 {[%emt 0:00:07]} 50. Kf2 {[%emt 0:00:16]} Ra2+ {[%emt 0:00:08]} 51. Kf3 {[%emt 0:00:15]} Ra3+ {[%emt 0:00:03]} 52. Kg2 {[%emt 0:00:04]} Ra2+ {[%emt 0:00:02]} 53. Kf1 {[%emt 0:00:05]} Ra3 {[%emt 0:00:25]} 54. Kf2 {[%emt 0:00:15]} Ra2+ {[%emt 0:00:01]} 55. Kf1 {[%emt 0:00:15]} Ra3 {[%emt 0:00:03]} 56. Kf2 {[%emt 0:00:01]} 1/2-1/2

[Event "RUS-chT Women Rapid 2019"]
[Site "Sochi"]
[Date "2019.10.18"]
[Round "4.7"]
[White "Gritsayeva, Oksana"]
[Black "Guseva, Marina"]
[Result "1-0"]
[ECO "B23"]
[WhiteElo "2370"]
[BlackElo "2366"]
[Annotator "NA"]
[PlyCount "49"]
[EventDate "2019.10.18"]
[EventType "swiss"]
[EventCountry "RUS"]
[SourceTitle "playchess.com"]
[Source "ChessBase"]
[SourceQuality "1"]
[TimeControl "900+10"]

1. e4 {[%emt 0:00:00]} c5 {[%emt 0:00:00]} 2. Nc3 {[%emt 0:00:00]} d6 {[%emt 0:00:00]} 3. f4 {[%emt 0:00:00]} Nc6 {[%emt 0:00:00]} 4. Bb5 {[%emt 0:00:00]} Bd7 {[%emt 0:00:08]} 5. Nf3 {[%emt 0:00:00]} a6 {[%emt 0:00:02]} 6. Bxc6 {[%emt 0:00:02]} Bxc6 {[%emt 0:00:01]} 7. d4 {[%emt 0:00:49]} cxd4 {[%emt 0:00:02]} 8. Qxd4 {[%emt 0:00:02]} e6 {[%emt 0:00:15]} 9. O-O {[%emt 0:00:27]} Nf6 {[%emt 0:00:02]} 10. a4 {[%emt 0:00:52]} Be7 {[%emt 0:00:10]} 11. b3 {[%emt 0:00:17]} O-O {[%emt 0:00:08]} 12. Bb2 {[%emt 0:00:02]} Rc8 {[%emt 0:00:12]} 13. Qd3 {[%emt 0:00:19]} Qb6+ {[%emt 0:01:34]} 14. Kh1 {[%emt 0:00:12]} Ng4 {[%emt 0:00:13]} 15. Ne2 {[%emt 0:02:33]} e5 {[%emt 0:04:12]} 16. Ng3 {[%emt 0:03:09]} Nf2+ {[%emt 0:03:45]} 17. Rxf2 {[%emt 0:00:02]} Qxf2 {[%emt 0:00:01]} 18. Rf1 {[%emt 0:00:57]} Qb6 {[%emt 0:01:08]} 19. Nf5 {[%emt 0:00:15]} Qd8 {[%emt 0:00:05]} 20. fxe5 {[%emt 0:01:05]} dxe5 {[%emt 0:00:23]} 21. Nxe5 {[%emt 0:00:15]} Bf6 {[%emt 0:01:23]} 22. Qg3 {[%emt 0:00:24]} Qc7 {[%emt 0:00:53]} 23. Nh6+ {[%emt 0:00:35]} Kh8 {[%emt 0:00:01]} 24. Rxf6 {[%emt 0:00:33]} Rcd8 {[%emt 0:01:29]} 25. Rf1 {[%emt 0:01:15]} 1-0

[Event "RUS-chT Women Rapid 2019"]
[Site "Sochi"]
[Date "2019.10.18"]
[Round "4.8"]
[White "Kovanova, Baira"]
[Black "Vasilevich, Tatjana"]
[Result "1-0"]
[ECO "D93"]
[WhiteElo "2344"]
[BlackElo "2360"]
[Annotator "NA"]
[PlyCount "119"]
[EventDate "2019.10.18"]
[EventType "swiss"]
[EventCountry "RUS"]
[SourceTitle "playchess.com"]
[Source "ChessBase"]
[SourceQuality "1"]
[TimeControl "900+10"]

1. Nf3 {[%emt 0:00:00]} Nf6 {[%emt 0:00:00]} 2. c4 {[%emt 0:00:00]} g6 {[%emt 0:00:29]} 3. d4 {[%emt 0:00:00]} Bg7 {[%emt 0:00:01]} 4. Bf4 {[%emt 0:00:02]} O-O {[%emt 0:00:08]} 5. e3 {[%emt 0:00:04]} d5 {[%emt 0:00:12]} 6. Nc3 {[%emt 0:00:10]} c5 {[%emt 0:00:15]} 7. Be2 {[%emt 0:02:36]} dxc4 {[%emt 0:02:56]} 8. Bxc4 {[%emt 0:01:42]} cxd4 {[%emt 0:01:14]} 9. Nxd4 {[%emt 0:00:45]} Nh5 {[%emt 0:00:39]} 10. Bg5 {[%emt 0:02:12]} h6 {[%emt 0:05:15]} 11. Bh4 {[%emt 0:00:05]} Bxd4 {[%emt 0:00:12]} 12. exd4 {[%emt 0:02:08]} Ng7 {[%emt 0:00:43]} 13. Bg3 {[%emt 0:01:11]} Nf5 {[%emt 0:00:13]} 14. d5 {[%emt 0:00:06]} Nd7 {[%emt 0:00:25]} 15. Bf4 {[%emt 0:00:42]} Nb6 {[%emt 0:01:14]} 16. Bb3 {[%emt 0:00:05]} Kh7 {[%emt 0:00:14]} 17. O-O {[%emt 0:00:16]} Bd7 {[%emt 0:00:20]} 18. Qd3 {[%emt 0:01:35]} Rc8 {[%emt 0:00:31]} 19. Rfe1 {[%emt 0:00:05]} Re8 {[%emt 0:00:19]} 20. a4 {[%emt 0:01:00]} Nd6 {[%emt 0:00:34]} 21. Qf3 {[%emt 0:00:42]} Nbc4 {[%emt 0:01:31]} 22. Re2 {[%emt 0:00:28]} Nf5 {[%emt 0:00:13]} 23. Qd3 {[%emt 0:00:26]} Na5 {[%emt 0:00:20]} 24. Ba2 {[%emt 0:00:29]} Qb6 {[%emt 0:00:01]} 25. Rd1 {[%emt 0:00:11]} Nb3 {[%emt 0:00:07]} 26. Bxb3 {[%emt 0:01:34]} Qxb3 {[%emt 0:00:02]} 27. Rde1 {[%emt 0:00:13]} Qc4 {[%emt 0:00:10]} 28. Qd2 {[%emt 0:00:08]} Rcd8 {[%emt 0:00:43]} 29. Re4 {[%emt 0:00:05]} Qc5 {[%emt 0:00:05]} 30. Qe2 {[%emt 0:00:17]} Qb6 {[%emt 0:00:32]} 31. Be5 {[%emt 0:00:15]} a6 {[%emt 0:00:16]} 32. Qf3 {[%emt 0:00:04]} Kg8 {[%emt 0:00:07]} 33. b4 {[%emt 0:00:16]} Rc8 {[%emt 0:00:05]} 34. a5 {[%emt 0:00:02]} Qa7 {[%emt 0:00:12]} 35. Rg4 {[%emt 0:00:09]} b6 {[%emt 0:00:07]} 36. Rf4 {[%emt 0:00:23]} bxa5 {[%emt 0:00:02]} 37. bxa5 {[%emt 0:00:00]} Qc5 {[%emt 0:00:07]} 38. Ne4 {[%emt 0:00:08]} Qxa5 {[%emt 0:00:05]} 39. Bc3 {[%emt 0:00:03]} Qa3 {[%emt 0:00:08]} 40. g4 {[%emt 0:00:15]} Nh4 {[%emt 0:00:10]} 41. Qe3 {[%emt 0:00:40]} g5 {[%emt 0:00:08]} 42. Rf3 {[%emt 0:00:04]} Nxf3+ {[%emt 0:00:07]} 43. Qxf3 {[%emt 0:00:02]} Rxc3 {[%emt 0:00:24]} 44. Nxc3 {[%emt 0:00:01]} Bxg4 {[%emt 0:00:15]} 45. Qg3 {[%emt 0:00:23]} Rc8 {[%emt 0:00:11]} 46. Re3 {[%emt 0:00:20]} Bf5 {[%emt 0:00:13]} 47. h4 {[%emt 0:00:05]} Qd6 {[%emt 0:00:12]} 48. hxg5 {[%emt 0:00:20]} Qxg3+ {[%emt 0:00:15]} 49. Rxg3 {[%emt 0:00:01]} hxg5 {[%emt 0:00:09]} 50. Rxg5+ {[%emt 0:00:01]} Bg6 {[%emt 0:00:00]} 51. Ne2 {[%emt 0:00:18]} Kg7 {[%emt 0:00:15]} 52. Re5 {[%emt 0:00:03]} Kf8 {[%emt 0:00:16]} 53. Nd4 {[%emt 0:00:05]} Rc7 {[%emt 0:00:07]} 54. Nc6 {[%emt 0:00:26]} f6 {[%emt 0:00:15]} 55. Re3 {[%emt 0:00:07]} Bf7 {[%emt 0:00:04]} 56. Nb8 {[%emt 0:00:07]} a5 {[%emt 0:00:13]} 57. Ra3 {[%emt 0:00:04]} Rc1+ {[%emt 0:00:08]} 58. Kh2 {[%emt 0:00:02]} Rc5 {[%emt 0:00:14]} 59. Nd7+ {[%emt 0:00:01]} Kg7 {[%emt 0:00:06]} 60. Nxc5 {[%emt 0:00:02]} 1-0

[Event "RUS-chT Women Rapid 2019"]
[Site "Sochi"]
[Date "2019.10.18"]
[Round "4.10"]
[White "Sudakova, Irina"]
[Black "Maltsevskaya, Aleksandra"]
[Result "0-1"]
[ECO "B20"]
[WhiteElo "2288"]
[BlackElo "2333"]
[Annotator "NA"]
[PlyCount "86"]
[EventDate "2019.10.18"]
[EventType "swiss"]
[EventCountry "RUS"]
[SourceTitle "playchess.com"]
[Source "ChessBase"]
[SourceQuality "1"]
[TimeControl "900+10"]

1. e4 {[%emt 0:00:00]} c5 {[%emt 0:00:00]} 2. Ne2 {[%emt 0:00:00]} Nc6 {[%emt 0:00:00]} 3. g3 {[%emt 0:00:00]} g6 {[%emt 0:00:00]} 4. Bg2 {[%emt 0:00:00]} Bg7 {[%emt 0:00:00]} 5. c3 {[%emt 0:00:00]} d6 {[%emt 0:01:20]} 6. d4 {[%emt 0:00:01]} cxd4 {[%emt 0:00:02]} 7. cxd4 {[%emt 0:00:02]} Bg4 {[%emt 0:00:10]} 8. f3 {[%emt 0:00:07]} Bd7 {[%emt 0:00:02]} 9. d5 {[%emt 0:00:30]} Ne5 {[%emt 0:00:36]} 10. Nbc3 {[%emt 0:00:32]} Qb6 {[%emt 0:00:18]} 11. h3 {[%emt 0:06:05]} Nf6 {[%emt 0:01:36]} 12. f4 {[%emt 0:00:36]} Nc4 {[%emt 0:00:10]} 13. Qd3 {[%emt 0:00:33]} Nxb2 {[%emt 0:01:25]} 14. Bxb2 {[%emt 0:01:34]} Qxb2 {[%emt 0:00:04]} 15. Rb1 {[%emt 0:00:27]} Qa3 {[%emt 0:00:02]} 16. e5 {[%emt 0:00:53]} dxe5 {[%emt 0:03:21]} 17. fxe5 {[%emt 0:00:46]} Bf5 {[%emt 0:00:02]} 18. Qb5+ {[%emt 0:00:57]} Nd7 {[%emt 0:00:03]} 19. Rb3 {[%emt 0:00:40]} Qc5 {[%emt 0:04:51]} 20. g4 {[%emt 0:00:28]} Bc2 {[%emt 0:00:03]} 21. Rb2 {[%emt 0:01:40]} Qxb5 {[%emt 0:00:02]} 22. Nxb5 {[%emt 0:00:05]} Rc8 {[%emt 0:00:01]} 23. d6 {[%emt 0:01:22]} Bxe5 {[%emt 0:01:57]} 24. Nc7+ {[%emt 0:00:23]} Kd8 {[%emt 0:00:01]} 25. Rxc2 {[%emt 0:00:43]} Bxd6 {[%emt 0:00:07]} 26. Bxb7 {[%emt 0:00:34]} Rxc7 {[%emt 0:00:01]} 27. Rxc7 {[%emt 0:00:04]} Kxc7 {[%emt 0:00:02]} 28. Bg2 {[%emt 0:00:06]} Ne5 {[%emt 0:00:21]} 29. Nd4 {[%emt 0:00:06]} Rb8 {[%emt 0:00:12]} 30. Nb3 {[%emt 0:00:01]} a5 {[%emt 0:00:28]} 31. O-O {[%emt 0:00:10]} a4 {[%emt 0:00:02]} 32. Rc1+ {[%emt 0:00:02]} Kd7 {[%emt 0:00:02]} 33. Nc5+ {[%emt 0:00:29]} Bxc5+ {[%emt 0:00:29]} 34. Rxc5 {[%emt 0:00:01]} f6 {[%emt 0:00:38]} 35. Ra5 {[%emt 0:00:09]} Rb4 {[%emt 0:00:03]} 36. g5 {[%emt 0:00:29]} Nc4 {[%emt 0:00:24]} 37. Ra6 {[%emt 0:00:10]} Rb1+ {[%emt 0:00:42]} 38. Kh2 {[%emt 0:00:16]} Ne3 {[%emt 0:00:02]} 39. Bc6+ {[%emt 0:00:05]} Kc7 {[%emt 0:00:01]} 40. Bxa4 {[%emt 0:00:03]} Rb2+ {[%emt 0:00:23]} 41. Kg3 {[%emt 0:00:13]} Rxa2 {[%emt 0:00:20]} 42. Ra7+ {[%emt 0:00:24]} Kb6 {[%emt 0:00:23]} 43. Rxe7 {[%emt 0:00:02]} Nf5+ {[%emt 0:00:01]} 0-1

[Event "RUS-chT Women Rapid 2019"]
[Site "Sochi"]
[Date "2019.10.18"]
[Round "4.11"]
[White "Obolentseva, Alexandra"]
[Black "Lukina, Aleksandra"]
[Result "1-0"]
[ECO "E94"]
[WhiteElo "2282"]
[BlackElo "2060"]
[Annotator "NA"]
[PlyCount "151"]
[EventDate "2019.10.18"]
[EventType "swiss"]
[EventCountry "RUS"]
[SourceTitle "playchess.com"]
[Source "ChessBase"]
[SourceQuality "1"]
[TimeControl "900+10"]

1. d4 {[%emt 0:00:00]} Nf6 {[%emt 0:00:00]} 2. c4 {[%emt 0:00:00]} g6 {[%emt 0:00:00]} 3. Nc3 {[%emt 0:00:00]} Bg7 {[%emt 0:00:00]} 4. e4 {[%emt 0:00:00]} d6 {[%emt 0:00:00]} 5. Be2 {[%emt 0:00:01]} O-O {[%emt 0:00:00]} 6. Nf3 {[%emt 0:00:02]} e5 {[%emt 0:00:04]} 7. O-O {[%emt 0:00:02]} exd4 {[%emt 0:00:02]} 8. Nxd4 {[%emt 0:00:03]} Re8 {[%emt 0:00:04]} 9. f3 {[%emt 0:00:11]} c6 {[%emt 0:00:01]} 10. Kh1 {[%emt 0:00:07]} Na6 {[%emt 0:00:17]} 11. Be3 {[%emt 0:01:09]} Nc7 {[%emt 0:00:39]} 12. Bg1 {[%emt 0:00:14]} d5 {[%emt 0:00:17]} 13. cxd5 {[%emt 0:00:06]} cxd5 {[%emt 0:00:02]} 14. Ndb5 {[%emt 0:00:13]} Nxb5 {[%emt 0:00:48]} 15. Bxb5 {[%emt 0:00:03]} Bd7 {[%emt 0:00:36]} 16. Bxd7 {[%emt 0:00:24]} Qxd7 {[%emt 0:00:05]} 17. exd5 {[%emt 0:00:20]} Red8 {[%emt 0:00:29]} 18. Qb3 {[%emt 0:00:05]} Nh5 {[%emt 0:04:12]} 19. Rad1 {[%emt 0:00:37]} Be5 {[%emt 0:01:01]} 20. Rfe1 {[%emt 0:01:23]} Qf5 {[%emt 0:00:16]} 21. Qc4 {[%emt 0:00:34]} Nf4 {[%emt 0:01:27]} 22. Qe4 {[%emt 0:00:46]} Bxc3 {[%emt 0:01:42]} 23. Qxf5 {[%emt 0:00:02]} gxf5 {[%emt 0:00:01]} 24. bxc3 {[%emt 0:00:02]} Rxd5 {[%emt 0:01:29]} 25. Rxd5 {[%emt 0:00:10]} Nxd5 {[%emt 0:00:01]} 26. c4 {[%emt 0:00:08]} Nb4 {[%emt 0:00:45]} 27. a3 {[%emt 0:00:11]} Nc6 {[%emt 0:01:07]} 28. Rb1 {[%emt 0:00:16]} b6 {[%emt 0:00:08]} 29. Rb5 {[%emt 0:00:02]} Ne7 {[%emt 0:01:28]} 30. Re5 {[%emt 0:00:03]} Kf8 {[%emt 0:00:03]} 31. c5 {[%emt 0:00:02]} Rb8 {[%emt 0:00:09]} 32. cxb6 {[%emt 0:00:17]} axb6 {[%emt 0:00:01]} 33. h3 {[%emt 0:00:20]} Rb7 {[%emt 0:00:11]} 34. Rb5 {[%emt 0:00:38]} Nc8 {[%emt 0:00:14]} 35. Rxf5 {[%emt 0:01:09]} Ra7 {[%emt 0:00:05]} 36. Rb5 {[%emt 0:00:18]} Rxa3 {[%emt 0:00:04]} 37. Bxb6 {[%emt 0:00:03]} Nxb6 {[%emt 0:00:03]} 38. Rxb6 {[%emt 0:00:02]} Kg7 {[%emt 0:00:14]} 39. Kh2 {[%emt 0:00:01]} f6 {[%emt 0:00:30]} 40. Rb4 {[%emt 0:00:09]} Rc3 {[%emt 0:00:08]} 41. Rg4+ {[%emt 0:00:02]} Kf7 {[%emt 0:00:01]} 42. Kg3 {[%emt 0:00:04]} Ra3 {[%emt 0:00:05]} 43. Kh4 {[%emt 0:00:06]} Ra5 {[%emt 0:00:02]} 44. Rb4 {[%emt 0:00:08]} Kg6 {[%emt 0:00:12]} 45. Kg3 {[%emt 0:00:27]} h5 {[%emt 0:00:19]} 46. Rb8 {[%emt 0:00:17]} Ra4 {[%emt 0:00:21]} 47. Re8 {[%emt 0:00:15]} Rb4 {[%emt 0:00:47]} 48. Re4 {[%emt 0:00:04]} Rb5 {[%emt 0:00:03]} 49. Ra4 {[%emt 0:00:04]} Rc5 {[%emt 0:00:03]} 50. Kh4 {[%emt 0:00:06]} Rb5 {[%emt 0:00:05]} 51. Kg3 {[%emt 0:00:34]} Rc5 {[%emt 0:00:01]} 52. Re4 {[%emt 0:00:04]} Rb5 {[%emt 0:00:02]} 53. Kf4 {[%emt 0:00:11]} Rb2 {[%emt 0:00:30]} 54. g3 {[%emt 0:00:29]} Rb3 {[%emt 0:00:13]} 55. Ra4 {[%emt 0:00:05]} Rc3 {[%emt 0:00:10]} 56. h4 {[%emt 0:00:12]} Rb3 {[%emt 0:00:02]} 57. g4 {[%emt 0:00:07]} Rb5 {[%emt 0:00:43]} 58. Kg3 {[%emt 0:00:21]} Rb3 {[%emt 0:00:39]} 59. g5 {[%emt 0:00:28]} Rb6 {[%emt 0:00:26]} 60. Ra5 {[%emt 0:00:11]} fxg5 {[%emt 0:00:52]} 61. hxg5 {[%emt 0:00:11]} Rb3 {[%emt 0:00:19]} 62. Re5 {[%emt 0:00:05]} Ra3 {[%emt 0:00:02]} 63. Kf4 {[%emt 0:00:06]} Ra4+ {[%emt 0:00:18]} 64. Kg3 {[%emt 0:00:43]} Rb4 {[%emt 0:00:06]} 65. f4 {[%emt 0:00:08]} Rb3+ {[%emt 0:00:09]} 66. Kh4 {[%emt 0:00:03]} Rb4 {[%emt 0:00:31]} 67. Re6+ {[%emt 0:00:05]} Kg7 {[%emt 0:00:03]} 68. Rf6 {[%emt 0:00:02]} Rb1 {[%emt 0:00:01]} 69. Kxh5 {[%emt 0:00:03]} Rh1+ {[%emt 0:00:01]} 70. Kg4 {[%emt 0:00:02]} Rb1 {[%emt 0:00:04]} 71. Ra6 {[%emt 0:00:03]} Rb4 {[%emt 0:00:02]} 72. Re6 {[%emt 0:00:19]} Rc4 {[%emt 0:00:02]} 73. Kf5 {[%emt 0:00:03]} Rc5+ {[%emt 0:00:01]} 74. Re5 {[%emt 0:00:02]} Rc6 {[%emt 0:00:01]} 75. Re7+ {[%emt 0:00:07]} Kf8 {[%emt 0:00:01]} 76. Re6 {[%emt 0:00:02]} 1-0

[Event "RUS-chT Women Rapid 2019"]
[Site "Sochi"]
[Date "2019.10.18"]
[Round "4.12"]
[White "Usacheva, Glafira"]
[Black "Gvanceladze, Anna"]
[Result "1-0"]
[ECO "D16"]
[WhiteElo "1905"]
[BlackElo "2270"]
[Annotator "NA"]
[PlyCount "83"]
[EventDate "2019.10.18"]
[EventType "swiss"]
[EventCountry "RUS"]
[SourceTitle "playchess.com"]
[Source "ChessBase"]
[SourceQuality "1"]
[TimeControl "900+10"]

1. d4 {[%emt 0:00:00]} d5 {[%emt 0:00:00]} 2. c4 {[%emt 0:00:00]} c6 {[%emt 0:00:00]} 3. Nf3 {[%emt 0:00:01]} Nf6 {[%emt 0:00:00]} 4. Nc3 {[%emt 0:00:08]} dxc4 {[%emt 0:00:00]} 5. a4 {[%emt 0:00:16]} Na6 {[%emt 0:00:02]} 6. e4 {[%emt 0:00:33]} Bg4 {[%emt 0:00:05]} 7. Be3 {[%emt 0:00:42]} e6 {[%emt 0:00:37]} 8. Bxc4 {[%emt 0:00:51]} Nb4 {[%emt 0:00:10]} 9. O-O {[%emt 0:00:53]} Be7 {[%emt 0:00:05]} 10. a5 {[%emt 0:00:32]} O-O {[%emt 0:00:35]} 11. Qd2 {[%emt 0:03:02]} Bxf3 {[%emt 0:00:41]} 12. gxf3 {[%emt 0:00:01]} b5 {[%emt 0:00:55]} 13. Bb3 {[%emt 0:00:34]} a6 {[%emt 0:00:15]} 14. Kh1 {[%emt 0:00:12]} Qd7 {[%emt 0:01:41]} 15. Rg1 {[%emt 0:00:21]} Kh8 {[%emt 0:02:04]} 16. Bg5 {[%emt 0:03:18]} Rad8 {[%emt 0:02:26]} 17. Rad1 {[%emt 0:01:32]} c5 {[%emt 0:01:15]} 18. e5 {[%emt 0:01:20]} Nh5 {[%emt 0:01:41]} 19. Ne4 {[%emt 0:01:17]} cxd4 {[%emt 0:00:41]} 20. Bxe7 {[%emt 0:00:30]} Qxe7 {[%emt 0:00:01]} 21. Nd6 {[%emt 0:00:01]} Nc6 {[%emt 0:00:22]} 22. f4 {[%emt 0:01:23]} Qh4 {[%emt 0:01:46]} 23. Rc1 {[%emt 0:00:02]} Ne7 {[%emt 0:01:06]} 24. Qxd4 {[%emt 0:00:47]} Ng6 {[%emt 0:00:59]} 25. Rc7 {[%emt 0:00:21]} Kg8 {[%emt 0:00:01]} 26. Bd1 {[%emt 0:00:22]} Qxf4 {[%emt 0:00:20]} 27. Qxf4 {[%emt 0:00:13]} Nhxf4 {[%emt 0:00:01]} 28. Bf3 {[%emt 0:00:08]} Nxe5 {[%emt 0:00:06]} 29. Nb7 {[%emt 0:00:17]} Rd2 {[%emt 0:00:31]} 30. Be4 {[%emt 0:00:12]} Rxf2 {[%emt 0:00:29]} 31. Rc5 {[%emt 0:00:01]} Ned3 {[%emt 0:00:12]} 32. Bxd3 {[%emt 0:00:14]} Nxd3 {[%emt 0:00:00]} 33. Rc6 {[%emt 0:00:06]} Rxb2 {[%emt 0:00:42]} 34. Rxa6 {[%emt 0:00:06]} Ne5 {[%emt 0:00:01]} 35. Rg3 {[%emt 0:00:11]} Nc4 {[%emt 0:00:25]} 36. Ra7 {[%emt 0:00:15]} e5 {[%emt 0:00:16]} 37. a6 {[%emt 0:00:02]} e4 {[%emt 0:00:01]} 38. Nc5 {[%emt 0:00:03]} e3 {[%emt 0:00:06]} 39. Re7 {[%emt 0:00:31]} Ra2 {[%emt 0:00:16]} 40. Rg1 {[%emt 0:00:09]} h5 {[%emt 0:00:18]} 41. h4 {[%emt 0:00:10]} Rd8 {[%emt 0:00:09]} 42. Ne6 {[%emt 0:00:06]} 1-0

[Event "RUS-chT Women Rapid 2019"]
[Site "Sochi"]
[Date "2019.10.18"]
[Round "5.1"]
[White "Gunina, Valentina"]
[Black "Bodnaruk, Anastasia"]
[Result "1-0"]
[ECO "B94"]
[WhiteElo "2509"]
[BlackElo "2419"]
[Annotator "ChessBase"]
[PlyCount "51"]
[EventDate "2019.10.18"]
[EventType "swiss"]
[EventCountry "RUS"]
[SourceTitle "playchess.com"]
[Source "ChessBase"]
[SourceQuality "1"]
[TimeControl "900+10"]

1. e4 {[%emt 0:00:00]} c5 {[%emt 0:00:00]} 2. Nf3 {[%emt 0:00:00]} d6 {[%emt 0:00:00]} 3. d4 {[%emt 0:00:07]} cxd4 {[%emt 0:00:00]} 4. Nxd4 {[%emt 0:00:02]} Nf6 {[%emt 0:00:00]} 5. Nc3 {[%emt 0:00:02]} a6 {[%emt 0:00:00]} 6. Bg5 {[%emt 0:00:03]} Nbd7 {[%emt 0:00:00]} 7. f4 {[%emt 0:00:51]} Qc7 {[%emt 0:00:05]} 8. Qf3 {[%emt 0:00:09]} e6 {[%emt 0:01:18]} 9. O-O-O {[%emt 0:00:30]} b5 {[%emt 0:00:01]} 10. e5 {[%emt 0:03:12]} Bb7 {[%emt 0:00:47]} 11. Qg3 {[%emt 0:00:02]} dxe5 {[%emt 0:01:19]} 12. fxe5 {[%emt 0:00:05]} Qxe5 {[%emt 0:01:25]} 13. Bf4 {[%emt 0:00:18]} Qc5 {[%emt 0:00:24]} 14. Bxb5 {[%emt 0:02:39]} axb5 {[%emt 0:00:49]} 15. Ndxb5 {[%emt 0:00:02]} Rc8 {[%emt 0:08:33]} 16. Rhe1 {[%emt 0:00:02]} Rc6 {[%emt 0:01:23]} 17. Be3 {[%emt 0:01:31]} Qh5 {[%emt 0:00:55]} 18. Nc7+ {[%emt 0:00:27]} Kd8 {[%emt 0:00:17]} 19. N7b5 {[%emt 0:01:00]} e5 {[%emt 0:00:05]} 20. Bg5 {[%emt 0:00:30]} Be7 {[%emt 0:00:29]} 21. Qxe5 {[%emt 0:00:22]} Re8 {[%emt 0:00:23]} 22. Na7 {[%emt 0:02:29]} Rc7 {[%emt 0:00:11]} 23. Ncb5 {[%emt 0:00:38]} Rc5 {[%emt 0:00:12]} 24. Qb8+ {[%emt 0:00:12]} Rc8 {[%emt 0:00:02]} 25. Nc6+ {[%emt 0:00:12]} Bxc6 {[%emt 0:00:03]} 26. Qb6+ {[%emt 0:00:01]} 1-0

[Event "RUS-chT Women Rapid 2019"]
[Site "Sochi"]
[Date "2019.10.18"]
[Round "5.2"]
[White "Ovod, Evgenija"]
[Black "Bivol, Alina"]
[Result "0-1"]
[ECO "C07"]
[WhiteElo "2347"]
[BlackElo "2371"]
[Annotator "NA"]
[PlyCount "64"]
[EventDate "2019.10.18"]
[EventType "swiss"]
[EventCountry "RUS"]
[SourceTitle "playchess.com"]
[Source "ChessBase"]
[SourceQuality "1"]
[TimeControl "900+10"]

1. e4 {[%emt 0:00:00]} e6 {[%emt 0:00:00]} 2. d4 {[%emt 0:00:00]} d5 {[%emt 0:00:00]} 3. Nd2 {[%emt 0:00:00]} c5 {[%emt 0:00:07]} 4. Ngf3 {[%emt 0:00:00]} Nf6 {[%emt 0:00:31]} 5. exd5 {[%emt 0:00:00]} exd5 {[%emt 0:00:02]} 6. dxc5 {[%emt 0:00:46]} Bxc5 {[%emt 0:00:03]} 7. Bb5+ {[%emt 0:00:01]} Bd7 {[%emt 0:00:30]} 8. Bxd7+ {[%emt 0:00:09]} Nbxd7 {[%emt 0:00:10]} 9. O-O {[%emt 0:00:02]} O-O {[%emt 0:00:02]} 10. Nb3 {[%emt 0:00:02]} Bb6 {[%emt 0:00:01]} 11. c3 {[%emt 0:00:35]} Re8 {[%emt 0:00:16]} 12. Nfd4 {[%emt 0:00:47]} Qc7 {[%emt 0:00:42]} 13. Qf3 {[%emt 0:00:49]} Ne5 {[%emt 0:00:09]} 14. Qf5 {[%emt 0:00:14]} Ng6 {[%emt 0:00:51]} 15. Be3 {[%emt 0:00:50]} Re5 {[%emt 0:01:04]} 16. Qf3 {[%emt 0:00:15]} Rae8 {[%emt 0:00:47]} 17. a4 {[%emt 0:03:31]} Re4 {[%emt 0:00:34]} 18. a5 {[%emt 0:01:33]} Bxd4 {[%emt 0:00:01]} 19. Bxd4 {[%emt 0:00:14]} Rf4 {[%emt 0:01:08]} 20. Qd3 {[%emt 0:00:28]} Rg4 {[%emt 0:01:15]} 21. g3 {[%emt 0:00:48]} Nf4 {[%emt 0:01:38]} 22. Qf3 {[%emt 0:00:39]} Ne2+ {[%emt 0:01:39]} 23. Kg2 {[%emt 0:00:33]} Nxd4 {[%emt 0:00:31]} 24. Nxd4 {[%emt 0:00:01]} Rge4 {[%emt 0:00:14]} 25. Rfd1 {[%emt 0:00:12]} h5 {[%emt 0:00:54]} 26. Rd2 {[%emt 0:00:51]} Qc5 {[%emt 0:01:15]} 27. Nf5 {[%emt 0:02:45]} R4e5 {[%emt 0:00:17]} 28. Ne3 {[%emt 0:01:18]} Ne4 {[%emt 0:00:14]} 29. Rd4 {[%emt 0:00:13]} h4 {[%emt 0:01:47]} 30. gxh4 {[%emt 0:00:25]} R8e6 {[%emt 0:01:00]} 31. Nf5 {[%emt 0:01:40]} Rf6 {[%emt 0:00:21]} 32. Qh5 {[%emt 0:00:10]} Rexf5 {[%emt 0:00:06]} 0-1